bitfinex-derivatives/quotes_BTCF0:USTF0_20241120
["timestamp","ask_amount","ask_price","bid_price","bid_amount"]
[1732117464573,0.04047255,94791.0,94790.0,0.40256292]
[1732117464779,0.0567143,94791.0,94790.0,0.40256292]
[1732117465174,0.04047255,94791.0,94790.0,0.40256292]
[1732117465370,0.0567143,94791.0,94790.0,0.40256292]
[1732117465864,0.04047255,94791.0,94790.0,0.04176292]
[1732117466065,0.04047255,94791.0,94786.0,0.0357]
[1732117466262,0.04047255,94790.0,94786.0,0.04183455]
[1732117466467,0.04047255,94790.0,94782.0,0.3608]
[1732117466468,0.09316055,94789.0,94782.0,0.3608]
[1732117466661,0.05672551,94788.0,94782.0,0.3608]
[1732117466871,0.01625296,94785.0,94782.0,0.3608]
[1732117467176,0.04047255,94784.0,94782.0,0.0429807]
[1732117467370,0.04047255,94783.0,94778.0,0.1832907]
[1732117467578,0.01626612,94780.0,94779.0,0.052693]
[1732117467877,0.02148636,94780.0,94779.0,0.3608]
[1732117468077,0.1,94800.0,94779.0,0.3608]
[1732117468282,0.01626546,94780.0,94779.0,0.3608]
[1732117468475,0.04153889,94780.0,94779.0,0.3608]
[1732117468776,0.3608,94791.0,94779.0,0.3608]
[1732117468978,0.093856,94790.0,94779.0,0.3608]
[1732117469279,0.093856,94789.0,94779.0,0.3608]
[1732117469482,0.041168,94788.0,94779.0,0.3608]
[1732117469778,0.041168,94787.0,94779.0,0.3608]
[1732117469979,0.041168,94786.0,94781.0,0.052692]
[1732117470167,0.041168,94785.0,94779.0,0.3608]
[1732117470373,0.041168,94784.0,94779.0,0.3608]
[1732117470575,0.041168,94783.0,94779.0,0.3608]
[1732117470770,0.041168,94782.0,94779.0,0.11956534]
[1732117470971,0.052696,94773.0,94772.0,0.11956534]
[1732117471182,0.041168,94773.0,94772.0,0.11956534]
[1732117471480,0.093864,94773.0,94772.0,0.11956534]
[1732117471687,0.093864,94773.0,94771.0,0.04281593]
[1732117471688,0.052697,94772.0,94771.0,0.04225593]
[1732117471983,0.052702,94764.0,94754.0,0.052707]
[1732117472176,0.09387,94763.0,94754.0,0.052707]
[1732117472377,0.052704,94760.0,94752.0,0.3608]
[1732117472581,0.041168,94759.0,94758.0,0.11956534]
[1732117473080,0.093872,94759.0,94758.0,0.11956534]
[1732117473477,0.041168,94759.0,94758.0,0.11956534]
[1732117473673,0.041168,94759.0,94748.0,0.40200316]
[1732117473983,0.052691,94783.0,94757.0,0.052705]
[1732117473984,0.05650296,94758.0,94757.0,0.052705]
[1732117474284,0.04019211,94758.0,94757.0,0.11956534]
[1732117474473,0.04019211,94758.0,94757.0,0.17227034]
[1732117474674,0.04019211,94758.0,94757.0,0.11956534]
[1732117474877,0.04019211,94758.0,94748.0,0.04120316]
[1732117475077,0.3608,94754.0,94748.0,0.04120316]
[1732117475274,0.01286681,94753.0,94748.0,0.04120316]
[1732117475582,0.05636787,94752.0,94748.0,0.04120316]
[1732117475783,0.04004224,94751.0,94749.0,0.11956534]
[1732117475979,0.04004224,94750.0,94749.0,0.11956534]
[1732117476177,0.04004224,94750.0,94749.0,0.17227534]
[1732117476385,0.04004224,94750.0,94749.0,0.11956534]
[1732117476881,0.05637576,94750.0,94749.0,0.11956534]
[1732117477184,0.04004224,94750.0,94749.0,0.11956534]
[1732117478177,0.04004224,94750.0,94749.0,0.17227534]
[1732117479177,0.04028896,94750.0,94749.0,0.11956534]
[1732117479379,0.04028896,94750.0,94749.0,0.17227534]
[1732117479586,0.3608,94754.0,94749.0,0.17227534]
[1732117479793,0.04027356,94753.0,94749.0,0.17227534]
[1732117480086,0.04027356,94752.0,94749.0,0.11956534]
[1732117480285,0.3608,94754.0,94751.0,0.052709]
[1732117480587,0.3608,94754.0,94736.0,0.04245687]
[1732117480588,0.48036534,94752.0,94736.0,0.04245687]
[1732117480787,0.53308134,94737.0,94736.0,0.04245687]
[1732117480982,0.53308134,94737.0,94712.0,0.3608]
[1732117480983,0.87334984,94737.0,94716.0,0.052728]
[1732117481291,0.01637329,94722.0,94712.0,0.3608]
[1732117481477,0.052729,94715.0,94714.0,0.04345525]
[1732117481680,0.0929975,94715.0,94714.0,0.00114]
[1732117481886,0.0402685,94715.0,94714.0,0.00114]
[1732117482887,0.052728,94716.0,94714.0,0.00114]
[1732117483181,0.03887605,94715.0,94714.0,0.053869]
[1732117483483,0.03887605,94715.0,94714.0,0.23671486]
[1732117483686,0.01636615,94726.0,94714.0,0.18398586]
[1732117483887,0.01636615,94732.0,94731.0,0.05272]
[1732117484184,0.0337,94752.0,94731.0,0.23556586]
[1732117484185,0.052714,94742.0,94731.0,0.23556586]
[1732117484391,0.052714,94742.0,94732.0,0.052719]
[1732117484594,0.052715,94740.0,94731.0,0.18284586]
[1732117484784,0.052716,94738.0,94731.0,0.18284586]
[1732117485490,0.01636615,94743.0,94732.0,0.052719]
[1732117485789,0.01636615,94744.0,94731.0,0.18284586]
[1732117485995,0.413517,94737.0,94725.0,0.413523]
[1732117486293,0.052717,94736.0,94725.0,0.3608]
[1732117486488,0.052717,94736.0,94728.0,0.052721]
[1732117486887,0.3608,94737.0,94725.0,0.3608]
[1732117487082,0.3608,94737.0,94729.0,0.052721]
[1732117487284,0.3608,94737.0,94725.0,0.3608]
[1732117487285,0.3608,94737.0,94733.0,0.052719]
[1732117487491,0.3608,94737.0,94731.0,0.18284586]
[1732117487986,0.052717,94736.0,94731.0,0.18284586]
[1732117488588,0.3608,94737.0,94731.0,0.18284586]
[1732117488900,0.3608,94737.0,94725.0,0.40300088]
[1732117489086,0.052721,94730.0,94725.0,0.40300088]
[1732117489288,0.3608,94737.0,94725.0,0.40300088]
[1732117489490,0.052726,94721.0,94714.0,0.00114]
[1732117489697,0.052726,94721.0,94714.0,0.04317643]
[1732117489887,0.052726,94721.0,94714.0,0.00114]
[1732117490786,0.052726,94720.0,94714.0,0.00114]
[1732117491000,0.052727,94719.0,94714.0,0.00114]
[1732117491189,0.052724,94724.0,94715.0,0.052729]
[1732117491389,0.052724,94724.0,94714.0,0.00114]
[1732117491390,0.052729,94715.0,94714.0,0.00114]
[1732117491692,0.052729,94715.0,94699.0,0.0006]
[1732117491996,0.052737,94700.0,94699.0,0.0006]
[1732117492395,0.052739,94697.0,94683.0,0.3608]
[1732117492597,0.052739,94697.0,94692.0,0.04223461]
[1732117493296,0.052739,94697.0,94686.0,0.052745]
[1732117493595,0.052739,94697.0,94683.0,0.3608]
[1732117493800,0.3608,94702.0,94683.0,0.3608]
[1732117493991,0.3608,94702.0,94687.0,0.18284586]
[1732117494192,0.3608,94702.0,94699.0,0.052738]
[1732117494392,0.3608,94702.0,94691.0,0.04164849]
[1732117494393,0.3608,94702.0,94700.0,0.052737]
[1732117494807,0.3608,94702.0,94691.0,0.04164849]
[1732117494808,0.3608,94702.0,94701.0,0.052737]
[1732117495296,0.0343921,94723.0,94696.0,0.18297555]
[1732117495503,9.21e-05,94723.0,94719.0,0.052726]
[1732117495690,9.21e-05,94723.0,94715.0,0.18284586]
[1732117496001,9.21e-05,94723.0,94722.0,0.052725]
[1732117496594,9.21e-05,94723.0,94715.0,0.18284586]
[1732117496789,9.21e-05,94723.0,94714.0,0.3608]
[1732117497000,0.052725,94722.0,94714.0,0.413529]
[1732117497300,9.21e-05,94723.0,94714.0,0.413529]
[1732117497301,9.21e-05,94723.0,94716.0,0.052728]
[1732117497503,9.21e-05,94723.0,94719.0,0.052726]
[1732117497696,9.21e-05,94723.0,94722.0,0.413525]
[1732117498005,9.21e-05,94723.0,94722.0,0.052725]
[1732117498794,9.21e-05,94723.0,94722.0,0.413525]
[1732117500304,0.413511,94748.0,94724.0,0.18284586]
[1732117500305,0.3608,94748.0,94724.0,0.18284586]
[1732117500496,0.3608,94740.0,94724.0,0.18284586]
[1732117500697,0.3608,94740.0,94724.0,0.18239962]
[1732117500901,0.3608,94740.0,94739.0,0.052715]
[1732117501210,0.0417817,94750.0,94739.0,0.052715]
[1732117501211,0.00064,94750.0,94739.0,0.052715]
[1732117501409,0.05335,94750.0,94739.0,0.052715]
[1732117501613,0.0364,94755.0,94738.0,0.3608]
[1732117501614,0.05271,94749.0,94738.0,0.3608]
[1732117501804,0.052711,94748.0,94738.0,0.3608]
[1732117502112,0.0364,94755.0,94738.0,0.3608]
[1732117502332,0.052709,94750.0,94738.0,0.413516]
[1732117502609,0.05271,94748.0,94738.0,0.3608]
[1732117503200,0.3608,94752.0,94738.0,0.3608]
[1732117503201,0.052712,94746.0,94738.0,0.3608]
[1732117503524,0.3608,94752.0,94738.0,0.3608]
[1732117503810,0.18284586,94763.0,94738.0,0.3608]
[1732117503811,0.3608,94750.0,94738.0,0.3158]
[1732117504008,0.052707,94755.0,94744.0,0.052712]
[1732117504218,0.3608,94751.0,94738.0,0.41104293]
[1732117504511,0.3608,94750.0,94739.0,0.052715]
[1732117504816,0.3608,94750.0,94738.0,0.35832693]
[1732117505508,0.052715,94740.0,94738.0,0.3158]
[1732117505702,0.052712,94746.0,94738.0,0.3158]
[1732117505899,0.3608,94750.0,94726.0,0.3608]
[1732117505900,0.3608,94742.0,94726.0,0.3608]
[1732117506102,0.3608,94733.0,94726.0,0.413522]
[1732117506312,0.3608,94742.0,94729.0,0.052721]
[1732117506513,0.3608,94742.0,94729.0,0.05272]
[1732117506514,0.052715,94741.0,94729.0,0.05272]
[1732117506709,0.052715,94741.0,94730.0,0.05272]
[1732117507012,0.052715,94741.0,94726.0,0.39574001]
[1732117507013,0.052715,94741.0,94731.0,0.05272]
[1732117507215,0.052715,94741.0,94726.0,0.39574001]
[1732117507424,0.052715,94741.0,94726.0,0.39518001]
[1732117507717,0.052715,94741.0,94731.0,0.052719]
[1732117508015,0.3608,94742.0,94736.0,0.052717]
[1732117508718,0.3608,94742.0,94726.0,0.39518001]
[1732117508719,0.3608,94742.0,94727.0,0.052722]
[1732117509012,0.3608,94742.0,94738.0,0.052716]
[1732117509213,0.3608,94742.0,94741.0,0.052714]
[1732117509924,0.03409019,94750.0,94748.0,0.05271]
[1732117510110,0.3608,94753.0,94740.0,0.18284586]
[1732117510305,0.3608,94753.0,94752.0,0.052708]
[1732117510503,0.3608,94764.0,94754.0,0.052707]
[1732117510814,0.3608,94764.0,94746.0,0.052711]
[1732117510815,0.39406351,94764.0,94746.0,0.052711]
[1732117511015,0.39406351,94764.0,94744.0,0.3608]
[1732117511322,0.052704,94761.0,94753.0,0.052707]
[1732117511509,0.39406351,94764.0,94744.0,0.3608]
[1732117511815,0.39406351,94764.0,94763.0,0.052702]
[1732117512613,0.03326351,94764.0,94763.0,0.052702]
[1732117512822,0.3608,94772.0,94763.0,0.052702]
[1732117513119,0.0335,94782.0,94763.0,0.3608]
[1732117513120,0.3608,94781.0,94763.0,0.3608]
[1732117513304,0.413492,94781.0,94763.0,0.3608]
[1732117513511,0.052693,94780.0,94770.0,0.052698]
[1732117513710,0.3608,94781.0,94763.0,0.3608]
[1732117514221,0.052693,94780.0,94763.0,0.3608]
[1732117514516,0.052693,94780.0,94772.0,0.052697]
[1732117514909,0.3608,94779.0,94772.0,0.052697]
[1732117515110,0.3608,94780.0,94774.0,0.052696]
[1732117515311,0.3608,94780.0,94763.0,0.3608]
[1732117515718,0.3608,94780.0,94764.0,0.0361]
[1732117516015,0.413493,94780.0,94764.0,0.0361]
[1732117516222,0.052694,94778.0,94769.0,0.052698]
[1732117516422,0.03461166,94781.0,94774.0,0.052696]
[1732117516614,0.07377257,94786.0,94774.0,0.052696]
[1732117516615,0.3608,94783.0,94774.0,0.052696]
[1732117516814,0.3608,94783.0,94775.0,0.052695]
[1732117517019,0.3608,94783.0,94764.0,0.0361]
[1732117517020,0.3608,94783.0,94776.0,0.18284586]
[1732117517212,0.39559914,94791.0,94776.0,0.18284586]
[1732117517719,0.44828614,94791.0,94781.0,0.052692]
[1732117518112,0.44828614,94791.0,94776.0,0.18284586]
[1732117518113,0.39559914,94791.0,94776.0,0.18284586]
[1732117518316,0.052689,94786.0,94778.0,0.052694]
[1732117518523,0.0343,94795.0,94779.0,0.3608]
[1732117518709,0.052689,94787.0,94779.0,0.3158]
[1732117519123,0.052693,94780.0,94779.0,0.3158]
[1732117519622,0.052693,94780.0,94765.0,0.052701]
[1732117519623,0.3608,94784.0,94767.0,0.0349014]
[1732117519928,0.052698,94770.0,94764.0,0.0001137]
[1732117520218,0.3608,94776.0,94764.0,0.0001137]
[1732117520219,0.052701,94766.0,94764.0,0.0001137]
[1732117520418,0.413501,94765.0,94764.0,0.0001137]
[1732117520613,0.449601,94765.0,94764.0,0.0001137]
[1732117521009,0.3969,94765.0,94764.0,0.0001137]
[1732117521713,0.449601,94765.0,94764.0,0.0001137]
[1732117521918,0.0361,94765.0,94764.0,0.0001137]
[1732117522218,1.949601,94765.0,94764.0,0.0001137]
[1732117522412,1.98436264,94765.0,94764.0,0.0001137]
[1732117522814,1.57086164,94765.0,94764.0,0.0001137]
[1732117523025,0.3608,94765.0,94764.0,0.0528147]
[1732117523219,0.18284586,94801.0,94764.0,0.0001137]
[1732117523220,0.02107406,94778.0,94764.0,0.0001137]
[1732117523414,0.02107406,94778.0,94777.0,0.052694]
[1732117524120,0.02107406,94778.0,94767.0,0.18284586]
[1732117524121,0.02107406,94778.0,94771.0,0.052697]
[1732117524312,0.052694,94778.0,94771.0,0.052697]
[1732117524514,1.5,94782.0,94772.0,0.052697]
[1732117524714,0.052695,94776.0,94764.0,0.0001137]
[1732117524912,1.5,94782.0,94764.0,0.0001137]
[1732117525119,0.052693,94780.0,94771.0,0.052697]
[1732117525332,0.052695,94776.0,94771.0,0.052697]
[1732117525518,0.052695,94776.0,94764.0,0.0001137]
[1732117525519,0.3608,94776.0,94764.0,0.03448392]
[1732117525723,0.052698,94771.0,94764.0,0.0001137]
[1732117525925,0.052695,94775.0,94766.0,0.0527]
[1732117526121,0.052696,94774.0,94766.0,0.0527]
[1732117526324,0.052696,94774.0,94764.0,0.0001137]
[1732117526527,0.3608,94776.0,94770.0,0.052698]
[1732117527031,0.3608,94776.0,94764.0,0.0001137]
[1732117527330,0.3608,94776.0,94770.0,0.052698]
[1732117527721,0.3608,94776.0,94772.0,0.052697]
[1732117528119,0.3608,94776.0,94764.0,0.0001137]
[1732117528322,0.3608,94776.0,94769.0,0.052699]
[1732117528626,0.3608,94776.0,94771.0,0.052698]
[1732117528834,0.3608,94776.0,94773.0,0.052696]
[1732117529020,0.3608,94776.0,94774.0,0.01646779]
[1732117529228,0.3608,94776.0,94775.0,0.01646779]
[1732117529728,0.3608,94776.0,94775.0,0.06916279]
[1732117529927,0.3608,94776.0,94775.0,0.01646779]
[1732117530329,0.3608,94776.0,94775.0,0.06916279]
[1732117531335,0.36144,94784.0,94775.0,0.01646779]
[1732117531522,0.3608,94784.0,94776.0,0.01646779]
[1732117531726,0.3608,94784.0,94764.0,0.0301137]
[1732117531727,0.3608,94784.0,94777.0,0.01646779]
[1732117531934,0.3608,94784.0,94778.0,0.01646779]
[1732117532130,0.3608,94784.0,94779.0,0.01646779]
[1732117532441,0.3608,94784.0,94780.0,0.01646779]
[1732117532730,0.3608,94784.0,94781.0,0.01646779]
[1732117532927,0.3608,94784.0,94782.0,0.01646779]
[1732117533134,0.3608,94784.0,94783.0,0.01646708]
[1732117533326,0.41349,94784.0,94783.0,0.01646708]
[1732117533731,0.05269,94784.0,94768.0,0.15396697]
[1732117533924,0.052692,94781.0,94768.0,0.15396697]
[1732117534125,0.3608,94786.0,94771.0,0.052697]
[1732117534327,0.052692,94781.0,94773.0,0.052696]
[1732117534522,0.052692,94781.0,94774.0,0.052696]
[1732117534732,0.052693,94780.0,94776.0,0.052695]
[1732117534932,0.05269,94785.0,94768.0,0.15396697]
[1732117535123,0.052692,94782.0,94774.0,0.052696]
[1732117535321,0.052692,94782.0,94768.0,0.15396697]
[1732117535322,0.052694,94777.0,94771.0,0.052697]
[1732117535526,0.052697,94773.0,94768.0,0.03439407]
[1732117535726,0.3608,94778.0,94764.0,0.0528147]
[1732117535927,0.052696,94774.0,94764.0,0.0001137]
[1732117536124,0.3608,94765.0,94764.0,0.0001137]
[1732117536526,0.413501,94765.0,94764.0,0.0001137]
[1732117537744,0.3608,94765.0,94764.0,0.0001137]
[1732117538035,0.3608,94765.0,94764.0,0.0528147]
[1732117538234,0.3608,94765.0,94764.0,0.0001137]
[1732117538235,0.413501,94765.0,94764.0,0.0001137]
[1732117539642,0.3608,94765.0,94764.0,0.0001137]
[1732117539939,0.3608,94765.0,94764.0,0.0528147]
[1732117540442,0.3608,94765.0,94764.0,0.0001137]
[1732117540939,0.413501,94765.0,94764.0,0.0001137]
[1732117541234,0.730061,94765.0,94764.0,0.0001137]
[1732117541835,0.052706,94755.0,94754.0,0.00158287]
[1732117542033,0.413506,94755.0,94754.0,0.00158287]
[1732117542237,0.3608,94755.0,94754.0,0.00158287]
[1732117542431,0.3608,94755.0,94754.0,0.05428987]
[1732117542639,0.3608,94755.0,94754.0,0.00158287]
[1732117543033,0.413506,94755.0,94754.0,0.00158287]
[1732117543435,0.3608,94755.0,94754.0,0.00158287]
[1732117543635,0.3608,94755.0,94754.0,0.05428987]
[1732117544043,0.3608,94755.0,94754.0,0.00158287]
[1732117544444,0.413506,94755.0,94754.0,0.00158287]
[1732117544946,0.413506,94755.0,94738.0,0.36510317]
[1732117544947,0.052715,94739.0,94738.0,0.50435834]
[1732117545144,0.052715,94739.0,94729.0,0.62393124]
[1732117545443,0.3608,94742.0,94729.0,0.1195729]
[1732117545645,0.052716,94738.0,94729.0,0.1195729]
[1732117545844,0.052717,94737.0,94729.0,0.1195729]
[1732117546154,0.052714,94742.0,94735.0,0.052717]
[1732117546336,0.052714,94742.0,94729.0,0.1195729]
[1732117546337,0.3608,94747.0,94736.0,0.1195729]
[1732117546541,0.3608,94747.0,94746.0,0.1722839]
[1732117547245,0.052713,94745.0,94740.0,0.052715]
[1732117547454,0.3608,94747.0,94746.0,0.052711]
[1732117547641,0.00012598,94764.0,94746.0,0.1195729]
[1732117547945,0.00080598,94764.0,94754.0,0.1195729]
[1732117548141,0.00080598,94764.0,94755.0,0.0305]
[1732117548340,0.00012598,94764.0,94755.0,0.0305]
[1732117548544,0.00012598,94764.0,94760.0,0.052703]
[1732117548752,0.00012598,94764.0,94755.0,0.0305]
[1732117548940,0.00012598,94764.0,94763.0,0.052702]
[1732117549449,0.00012598,94764.0,94755.0,0.0305]
[1732117549639,0.3608,94757.0,94756.0,0.052706]
[1732117549838,0.00012598,94764.0,94755.0,0.0305]
[1732117550036,0.00012598,94764.0,94756.0,0.1195729]
[1732117550447,0.00012598,94764.0,94763.0,0.052702]
[1732117550848,0.00012598,94764.0,94756.0,0.1195729]
[1732117551047,0.3608,94757.0,94755.0,0.03450631]
[1732117551255,0.3608,94757.0,94749.0,0.1195729]
[1732117551451,0.3608,94757.0,94741.0,0.3938]
[1732117551749,0.052713,94743.0,94737.0,0.00158332]
[1732117551945,0.3608,94739.0,94737.0,0.00158332]
[1732117552952,0.052716,94738.0,94737.0,0.00158332]
[1732117553146,0.052716,94738.0,94732.0,0.03]
[1732117553542,0.3608,94739.0,94732.0,0.03]
[1732117553742,0.052717,94737.0,94732.0,0.03]
[1732117553942,0.3608,94739.0,94732.0,0.03]
[1732117553943,0.052718,94735.0,94732.0,0.03]
[1732117554138,0.052719,94734.0,94730.0,0.00011361]
[1732117554549,0.3608,94731.0,94730.0,0.00011361]
[1732117554743,0.3608,94739.0,94730.0,0.00011361]
[1732117554954,0.3608,94739.0,94737.0,0.052716]
[1732117555468,0.3608,94739.0,94733.0,0.1195729]
[1732117555654,0.052718,94735.0,94734.0,0.44106113]
[1732117555851,0.1195729,94738.0,94730.0,0.44117474]
[1732117555852,0.1504729,94738.0,94730.0,0.44117474]
[1732117556054,0.3608,94731.0,94730.0,0.44117474]
[1732117556262,0.41352,94731.0,94730.0,0.00011361]
[1732117557454,0.44783504,94731.0,94730.0,0.00011361]
[1732117558753,0.76451504,94731.0,94730.0,0.00011361]
[1732117560455,0.71179504,94731.0,94730.0,0.00011361]
[1732117560666,0.3608,94731.0,94730.0,0.05283361]
[1732117562265,0.3608,94731.0,94730.0,0.00011361]
[1732117562469,1.5,94756.0,94745.0,0.052712]
[1732117562470,0.052709,94750.0,94745.0,0.052712]
[1732117562663,0.3608,94756.0,94753.0,0.052708]
[1732117562967,0.3608,94756.0,94742.0,0.1195729]
[1732117562968,0.3608,94756.0,94755.0,0.052706]
[1732117563663,0.3608,94756.0,94755.0,0.007706]
[1732117563855,0.3608,94756.0,94754.0,0.052707]
[1732117564170,0.3608,94756.0,94742.0,0.1195729]
[1732117564171,0.3608,94756.0,94751.0,0.052708]
[1732117564466,0.3608,94756.0,94755.0,0.052706]
[1732117565566,0.3608,94756.0,94751.0,0.0332]
[1732117565761,0.3608,94756.0,94755.0,0.052706]
[1732117566360,0.00012598,94764.0,94751.0,0.0332]
[1732117566664,0.00012598,94764.0,94763.0,0.1722749]
[1732117567570,0.00012598,94764.0,94763.0,0.53513573]
[1732117568163,0.00012598,94764.0,94763.0,0.1722749]
[1732117569366,0.00012598,94764.0,94763.0,0.052702]
[1732117570177,0.00012598,94764.0,94763.0,0.08661324]
[1732117571664,0.00012598,94764.0,94763.0,0.20618614]
[1732117572471,0.00012598,94764.0,94763.0,0.08661324]
[1732117572673,0.05282798,94764.0,94760.0,0.0302]
[1732117572872,0.00012598,94764.0,94759.0,0.3608]
[1732117573171,0.052704,94760.0,94759.0,0.3608]
[1732117573661,0.00012598,94764.0,94759.0,0.3608]
[1732117574179,0.00012598,94764.0,94759.0,0.413504]
[1732117574565,0.00012598,94764.0,94763.0,0.1722749]
[1732117577267,1.86144,94788.0,94771.0,0.052698]
[1732117577268,0.052692,94782.0,94771.0,0.052698]
[1732117577571,1.8608,94788.0,94779.0,0.052693]
[1732117577880,0.39420933,94788.0,94779.0,0.052693]
[1732117578070,0.39420933,94788.0,94781.0,0.052692]
[1732117578375,0.39420933,94788.0,94781.0,0.052691]
[1732117578564,0.39420933,94788.0,94782.0,0.052691]
[1732117578765,0.052689,94786.0,94775.0,0.0745729]
[1732117579071,0.052691,94783.0,94776.0,0.052695]
[1732117579275,0.44689833,94788.0,94775.0,0.0745729]
[1732117579476,0.44689833,94788.0,94779.0,0.052693]
[1732117579775,0.052689,94787.0,94779.0,0.052693]
[1732117579969,0.39420933,94788.0,94783.0,0.052691]
[1732117580173,0.39420933,94788.0,94772.0,0.3608]
[1732117580174,0.39420933,94788.0,94782.0,0.1195729]
[1732117580367,0.39420933,94788.0,94784.0,0.05269]
[1732117580565,0.39420933,94788.0,94787.0,0.052689]
[1732117584777,0.03340933,94788.0,94787.0,0.052689]
[1732117584975,0.3608,94797.0,94783.0,0.0319]
[1732117585173,0.39555273,94797.0,94786.0,0.1195729]
[1732117585371,0.052684,94796.0,94782.0,0.3942406]
[1732117585570,0.39555273,94797.0,94782.0,0.0334406]
[1732117585571,0.052686,94791.0,94782.0,0.0334406]
[1732117585777,0.1195729,94785.0,94761.0,0.0305]
[1732117586074,0.1195729,94785.0,94764.0,0.1195729]
[1732117586075,0.3608,94773.0,94764.0,0.1195729]
[1732117586883,0.3608,94773.0,94767.0,0.03480044]
[1732117588775,0.00064,94783.0,94772.0,0.3608]
[1732117588970,0.3608,94786.0,94782.0,0.1195729]
[1732117589779,0.00064,94796.0,94782.0,0.1195729]
[1732117589974,0.052684,94796.0,94784.0,0.05269]
[1732117590169,0.39555273,94797.0,94782.0,0.1195729]
[1732117590374,0.052686,94792.0,94782.0,0.1195729]
[1732117590683,0.052686,94792.0,94782.0,0.1722639]
[1732117591182,0.052686,94792.0,94782.0,0.1195729]
[1732117591478,0.052684,94796.0,94782.0,0.1195729]
[1732117591683,1.89555273,94797.0,94789.0,0.1195729]
[1732117591873,1.89555273,94797.0,94790.0,0.052687]
[1732117591874,0.39555273,94797.0,94790.0,0.052687]
[1732117592569,0.39555273,94797.0,94789.0,0.1195729]
[1732117592772,0.052684,94796.0,94789.0,0.1195729]
[1732117593779,0.39555273,94797.0,94789.0,0.0745729]
[1732117593977,0.39555273,94797.0,94792.0,0.052686]
[1732117594178,0.39555273,94797.0,94789.0,0.0745729]
[1732117594777,0.39555273,94797.0,94793.0,0.052685]
[1732117595379,0.03475273,94797.0,94794.0,0.052684]
[1732117595686,0.1,94800.0,94789.0,0.0745729]
[1732117595890,0.1,94800.0,94799.0,0.052682]
[1732117596782,0.1,94800.0,94799.0,0.413482]
[1732117596985,0.1,94800.0,94799.0,0.40894231]
[1732117597291,0.3608,94809.0,94796.0,0.1195729]
[1732117597476,0.00064,94818.0,94804.0,0.052679]
[1732117597477,0.3608,94805.0,94804.0,0.052679]
[1732117598183,0.052674,94813.0,94804.0,0.052679]
[1732117598486,0.3608,94806.0,94804.0,0.052679]
[1732117598881,0.052674,94813.0,94804.0,0.052679]
[1732117599184,0.3608,94807.0,94804.0,0.052679]
[1732117600179,0.3608,94807.0,94805.0,0.052679]
[1732117600486,0.3608,94807.0,94806.0,0.052678]
[1732117600686,0.3608,94807.0,94805.0,0.052678]
[1732117601278,0.3608,94806.0,94797.0,0.052683]
[1732117601480,0.3608,94806.0,94805.0,0.052679]
[1732117602589,0.03328017,94818.0,94803.0,0.1195729]
[1732117602590,0.3608,94808.0,94803.0,0.1195729]
[1732117602784,0.3608,94808.0,94805.0,0.052679]
[1732117602986,0.3608,94808.0,94803.0,0.1195729]
[1732117603283,0.3608,94805.0,94796.0,0.03428897]
[1732117603483,0.413479,94805.0,94797.0,0.052683]
[1732117603690,0.413479,94805.0,94791.0,0.19672]
[1732117603881,0.413479,94805.0,94788.0,0.4809729]
[1732117603882,0.3608,94805.0,94788.0,0.4809729]
[1732117604083,0.3608,94805.0,94797.0,0.052683]
[1732117604391,0.3608,94805.0,94788.0,0.4803729]
[1732117604392,0.05268,94803.0,94795.0,0.052684]
[1732117604689,1.5,94802.0,94788.0,0.51574134]
[1732117604886,1.5,94802.0,94788.0,0.51514134]
[1732117605287,0.052682,94800.0,94793.0,0.052685]
[1732117605481,0.052682,94799.0,94788.0,0.51514134]
[1732117605682,0.052682,94799.0,94788.0,0.51578134]
[1732117606093,0.052682,94799.0,94788.0,0.51514134]
[1732117606390,0.052684,94796.0,94788.0,0.51514134]
[1732117606589,0.052681,94801.0,94793.0,0.052685]
[1732117606980,0.052682,94800.0,94793.0,0.052685]
[1732117607693,0.4471161,94805.0,94795.0,0.052684]
[1732117607991,0.3944371,94805.0,94795.0,0.052684]
[1732117608385,0.05268,94803.0,94795.0,0.052684]
[1732117608692,0.05268,94803.0,94788.0,0.51514134]
[1732117609092,0.3944371,94805.0,94802.0,0.05268]
[1732117609280,0.3944371,94805.0,94804.0,0.052679]
[1732117610087,0.3944371,94805.0,94803.0,0.1195729]
[1732117610580,0.3944371,94805.0,94804.0,0.052679]
[1732117610780,0.0336371,94805.0,94804.0,0.052679]
[1732117610979,0.3608,94807.0,94804.0,0.052679]
[1732117611194,0.3608,94807.0,94803.0,0.1195729]
[1732117611195,0.3608,94807.0,94805.0,0.052679]
[1732117611390,0.052671,94819.0,94813.0,0.052674]
[1732117611587,0.052672,94817.0,94811.0,0.1195729]
[1732117611895,0.03391707,94819.0,94803.0,0.1195729]
[1732117612193,0.052671,94819.0,94807.0,0.052677]
[1732117612389,0.0332,94824.0,94807.0,0.052677]
[1732117612390,0.3608,94809.0,94807.0,0.052677]
[1732117612891,0.3608,94809.0,94797.0,0.0332662]
[1732117613094,0.3608,94798.0,94789.0,0.052688]
[1732117613389,0.3608,94798.0,94790.0,0.052687]
[1732117613592,0.052683,94797.0,94790.0,0.052687]
[1732117613791,0.052685,94794.0,94788.0,0.1195729]
[1732117613992,0.3608,94789.0,94788.0,0.1195729]
[1732117614686,0.3608,94789.0,94788.0,0.1722609]
[1732117614994,0.3608,94796.0,94791.0,0.052686]
[1732117615190,0.3608,94796.0,94795.0,0.1195729]
[1732117615491,0.42523494,94796.0,94795.0,0.1195729]
[1732117615697,0.42521927,94796.0,94795.0,0.1195729]
[1732117615988,0.42521637,94796.0,94795.0,0.1195729]
[1732117616395,0.413484,94796.0,94795.0,0.1195729]
[1732117617481,0.3608,94796.0,94795.0,0.1195729]
[1732117617688,0.3608,94796.0,94795.0,0.1722569]
[1732117617890,0.37261135,94796.0,94795.0,0.1722569]
[1732117618186,0.413478,94808.0,94805.0,0.052678]
[1732117618386,0.0119844,94807.0,94805.0,0.052678]
[1732117618585,0.0119844,94806.0,94805.0,0.052678]
[1732117618791,0.0119844,94806.0,94803.0,0.05268]
[1732117619087,0.3608,94808.0,94795.0,0.1195729]
[1732117619088,0.3608,94808.0,94805.0,0.052679]